[Event "Titled Tuesday Blitz November 14 Early 2023"]
[White "Hayrapetyan, Hovik"]
[Black "Chernomordik, Pavel"]
[WhiteFideId "13302639"]
[BlackFideId "2804530"]
[WhiteElo "2731"]
[BlackElo "2543"]
[Result "1-0"]
[Round "9"]
[TimeControl "180+1"]
[Date "2023.11.14"]
[WhiteClock "0:00:07"]
[BlackClock "0:00:00"]
[Board "53"]

1. d4 {[%clk 0:02:53]}  g6 {[%clk 0:02:59]} 2. c4 {[%clk 0:02:47]}  Bg7 {[%clk 0:02:58]} 3. Nc3 {[%clk 0:02:47]}  d6 {[%clk 0:02:58]} 4. Nf3 {[%clk 0:02:47]}  Nc6 {[%clk 0:02:58]} 5. g3 {[%clk 0:02:42]}  e5 {[%clk 0:02:56]} 6. d5 {[%clk 0:02:37]}  Nce7 {[%clk 0:02:50]} 7. Bg2 {[%clk 0:02:33]}  h6 {[%clk 0:02:49]} 8. e4 {[%clk 0:02:32]}  f5 {[%clk 0:02:47]} 9. Nh4 {[%clk 0:02:30]}  Nf6 {[%clk 0:02:46]} 10. exf5 {[%clk 0:02:26]}  gxf5 {[%clk 0:02:45]} 11. f4 {[%clk 0:02:27]}  O-O {[%clk 0:02:27]} 12. O-O {[%clk 0:02:21]}  e4 {[%clk 0:02:11]} 13. Be3 {[%clk 0:02:17]}  c5 {[%clk 0:02:06]} 14. dxc6 {[%clk 0:02:16]}  bxc6 {[%clk 0:02:05]} 15. Qd2 {[%clk 0:02:05]}  Be6 {[%clk 0:02:04]} 16. Rfd1 {[%clk 0:01:56]}  d5 {[%clk 0:01:52]} 17. cxd5 {[%clk 0:01:39]}  cxd5 {[%clk 0:01:51]} 18. Nb5 {[%clk 0:01:28]}  Qd7 {[%clk 0:01:35]} 19. Nd4 {[%clk 0:01:20]}  Bf7 {[%clk 0:01:34]} 20. Bh3 {[%clk 0:01:03]}  Ng4 {[%clk 0:01:32]} 21. Nhxf5 {[%clk 0:00:53]}  Nxf5 {[%clk 0:01:14]} 22. Bxg4 {[%clk 0:00:49]}  Nxd4 {[%clk 0:01:09]} 23. Bxd7 {[%clk 0:00:47]}  Nf3+ {[%clk 0:01:08]} 24. Kf1 {[%clk 0:00:14]}  Nxd2+ {[%clk 0:01:09]} 25. Rxd2 {[%clk 0:00:14]}  Rad8 {[%clk 0:01:07]} 26. Bc6 {[%clk 0:00:15]}  d4 {[%clk 0:01:07]} 27. Rad1 {[%clk 0:00:15]}  Rc8 {[%clk 0:00:55]} 28. Bxe4 {[%clk 0:00:04]}  dxe3 {[%clk 0:00:55]} 29. Re2 {[%clk 0:00:04]}  Bc4 {[%clk 0:00:52]} 30. Bd3 {[%clk 0:00:05]}  Rfe8 {[%clk 0:00:35]} 31. Bxc4+ {[%clk 0:00:05]}  Rxc4 {[%clk 0:00:35]} 32. Rd3 {[%clk 0:00:06]}  Rce4 {[%clk 0:00:29]} 33. Kg2 {[%clk 0:00:06]}  Bd4 {[%clk 0:00:27]} 34. Kf3 {[%clk 0:00:05]}  Bb6 {[%clk 0:00:27]} 35. b3 {[%clk 0:00:02]}  Kf7 {[%clk 0:00:24]} 36. Rd6 {[%clk 0:00:02]}  R8e6 {[%clk 0:00:23]} 37. Rd7+ {[%clk 0:00:03]}  Kf6 {[%clk 0:00:22]} 38. Rh7 {[%clk 0:00:02]}  Kg6 {[%clk 0:00:21]} 39. Rd7 {[%clk 0:00:03]}  Rd4 {[%clk 0:00:20]} 40. Rxd4 {[%clk 0:00:02]}  Bxd4 {[%clk 0:00:19]} 41. g4 {[%clk 0:00:03]}  Rc6 {[%clk 0:00:18]} 42. Ke4 {[%clk 0:00:02]}  Bb6 {[%clk 0:00:18]} 43. h4 {[%clk 0:00:03]}  Rc1 {[%clk 0:00:17]} 44. h5+ {[%clk 0:00:02]}  Kf6 {[%clk 0:00:17]} 45. b4 {[%clk 0:00:03]}  Rc4+ {[%clk 0:00:15]} 46. Kf3 {[%clk 0:00:03]}  Rxb4 {[%clk 0:00:15]} 47. Rc2 {[%clk 0:00:04]}  Ra4 {[%clk 0:00:12]} 48. Rc6+ {[%clk 0:00:04]}  Kg7 {[%clk 0:00:12]} 49. Rg6+ {[%clk 0:00:05]}  Kh7 {[%clk 0:00:11]} 50. Re6 {[%clk 0:00:05]}  Rxa2 {[%clk 0:00:10]} 51. g5 {[%clk 0:00:06]}  hxg5 {[%clk 0:00:10]} 52. fxg5 {[%clk 0:00:07]}  Rf2+ {[%clk 0:00:10]} 53. Kg3 {[%clk 0:00:07]}  e2 {[%clk 0:00:09]} 54. Re7+ {[%clk 0:00:07]}  Kg8 {[%clk 0:00:09]} 55. h6 {[%clk 0:00:08]}  Kf8 {[%clk 0:00:09]} 56. Re4 {[%clk 0:00:07]}  Rf5 {[%clk 0:00:06]} 57. Kg4 {[%clk 0:00:07]}  Rf7 {[%clk 0:00:05]} 58. Rxe2 {[%clk 0:00:07]}  a5 {[%clk 0:00:05]} 59. Re6 {[%clk 0:00:07]}  Bd4 {[%clk 0:00:04]} 60. g6 {[%clk 0:00:07]}  Ra7 {[%clk 0:00:00]} 61. Rd6 {[%clk 0:00:07]} 1-0


[Site "https://www.chess.com"]

[Event "Titled Tuesday Blitz November 14 Early 2023"]
[White "arenal72"]
[Black "Halkias, Stelios"]
[BlackFideId "4201809"]
[WhiteElo "2508"]
[BlackElo "2727"]
[Result "0-1"]
[Round "9"]
[TimeControl "180+1"]
[Date "2023.11.14"]
[WhiteClock "0:01:11"]
[BlackClock "0:01:22"]
[Board "54"]

1. Nf3 {[%clk 0:02:47]}  Nf6 {[%clk 0:02:59]} 2. g3 {[%clk 0:02:46]}  g6 {[%clk 0:02:59]} 3. Bg2 {[%clk 0:02:46]}  Bg7 {[%clk 0:02:59]} 4. O-O {[%clk 0:02:46]}  O-O {[%clk 0:02:59]} 5. c4 {[%clk 0:02:47]}  d6 {[%clk 0:02:59]} 6. d4 {[%clk 0:02:47]}  Nbd7 {[%clk 0:02:59]} 7. Nc3 {[%clk 0:02:46]}  e5 {[%clk 0:02:59]} 8. dxe5 {[%clk 0:02:46]}  dxe5 {[%clk 0:02:59]} 9. Qc2 {[%clk 0:02:46]}  c6 {[%clk 0:02:55]} 10. b3 {[%clk 0:02:45]}  Qe7 {[%clk 0:02:54]} 11. a4 {[%clk 0:02:43]}  a5 {[%clk 0:02:50]} 12. Ba3 {[%clk 0:02:43]}  Nc5 {[%clk 0:02:50]} 13. Rad1 {[%clk 0:02:32]}  b6 {[%clk 0:02:44]} 14. Nd2 {[%clk 0:02:28]}  Bf5 {[%clk 0:02:36]} 15. Nde4 {[%clk 0:02:11]}  Rfd8 {[%clk 0:02:29]} 16. Nxf6+ {[%clk 0:02:08]}  Qxf6 {[%clk 0:02:25]} 17. Be4 {[%clk 0:02:03]}  Nxe4 {[%clk 0:02:20]} 18. Nxe4 {[%clk 0:02:02]}  Qe6 {[%clk 0:02:19]} 19. f3 {[%clk 0:01:57]}  Rd4 {[%clk 0:02:17]} 20. e3 {[%clk 0:01:52]}  Bxe4 {[%clk 0:02:00]} 21. fxe4 {[%clk 0:01:50]}  Rdd8 {[%clk 0:02:00]} 22. Rxd8+ {[%clk 0:01:46]}  Rxd8 {[%clk 0:01:59]} 23. Rd1 {[%clk 0:01:47]}  Rxd1+ {[%clk 0:01:49]} 24. Qxd1 {[%clk 0:01:48]}  h5 {[%clk 0:01:49]} 25. Kg2 {[%clk 0:01:38]}  Bh6 {[%clk 0:01:35]} 26. Qd8+ {[%clk 0:01:34]}  Kh7 {[%clk 0:01:35]} 27. Qxb6 {[%clk 0:01:19]}  Qg4 {[%clk 0:01:32]} 28. Qxc6 {[%clk 0:01:16]}  Qe2+ {[%clk 0:01:29]} 29. Kh3 {[%clk 0:01:11]}  Qf1+ {[%clk 0:01:24]} 30. Kh4 {[%clk 0:01:11]}  g5+ {[%clk 0:01:22]} 31. Kxh5 {[%clk 0:01:11]}  Qh3# {[%clk 0:01:22]} 0-1


[Site "https://www.chess.com"]

[Event "Titled Tuesday Blitz November 14 Early 2023"]
[White "DavitSantryan02"]
[Black "Chinguun, Sumiya"]
[BlackFideId "4902572"]
[WhiteElo "2091"]
[BlackElo "2706"]
[Result "1/2-1/2"]
[Round "9"]
[TimeControl "180+1"]
[Date "2023.11.14"]
[WhiteClock "0:00:04"]
[BlackClock "0:01:03"]
[Board "56"]

1. Nf3 {[%clk 0:03:00]}  Nf6 {[%clk 0:02:59]} 2. g3 {[%clk 0:03:00]}  g6 {[%clk 0:03:00]} 3. Bg2 {[%clk 0:03:01]}  Bg7 {[%clk 0:03:00]} 4. O-O {[%clk 0:03:01]}  O-O {[%clk 0:03:01]} 5. c4 {[%clk 0:03:01]}  d6 {[%clk 0:03:02]} 6. Nc3 {[%clk 0:03:02]}  c6 {[%clk 0:03:02]} 7. d3 {[%clk 0:03:02]}  e5 {[%clk 0:03:01]} 8. Rb1 {[%clk 0:03:02]}  a5 {[%clk 0:03:00]} 9. a3 {[%clk 0:03:02]}  Nbd7 {[%clk 0:03:00]} 10. b4 {[%clk 0:03:01]}  axb4 {[%clk 0:03:00]} 11. axb4 {[%clk 0:03:02]}  Re8 {[%clk 0:03:00]} 12. b5 {[%clk 0:03:02]}  Nc5 {[%clk 0:02:59]} 13. bxc6 {[%clk 0:03:02]}  bxc6 {[%clk 0:02:58]} 14. Nd2 {[%clk 0:03:03]}  Bd7 {[%clk 0:02:56]} 15. Bb2 {[%clk 0:02:59]}  Ne6 {[%clk 0:02:55]} 16. e3 {[%clk 0:02:56]}  Qc7 {[%clk 0:02:51]} 17. Qe2 {[%clk 0:02:49]}  Red8 {[%clk 0:02:49]} 18. Rfc1 {[%clk 0:02:47]}  Rab8 {[%clk 0:02:49]} 19. Ba3 {[%clk 0:02:46]}  Be8 {[%clk 0:02:48]} 20. Nde4 {[%clk 0:02:43]}  Nxe4 {[%clk 0:02:46]} 21. Nxe4 {[%clk 0:02:44]}  Rxb1 {[%clk 0:02:45]} 22. Rxb1 {[%clk 0:02:43]}  f5 {[%clk 0:02:45]} 23. Nc3 {[%clk 0:02:38]}  Qa5 {[%clk 0:02:43]} 24. Bb4 {[%clk 0:02:36]}  Qc7 {[%clk 0:02:42]} 25. Qa2 {[%clk 0:02:34]}  h6 {[%clk 0:02:34]} 26. Ba5 {[%clk 0:02:31]}  Qc8 {[%clk 0:02:27]} 27. Bxd8 {[%clk 0:02:31]}  Qxd8 {[%clk 0:02:26]} 28. c5 {[%clk 0:02:31]}  d5 {[%clk 0:02:25]} 29. Nxd5 {[%clk 0:02:25]}  Bf7 {[%clk 0:02:24]} 30. Nb6 {[%clk 0:02:16]}  Nxc5 {[%clk 0:02:19]} 31. Qa8 {[%clk 0:02:11]}  Qxa8 {[%clk 0:02:18]} 32. Nxa8 {[%clk 0:02:12]}  Nxd3 {[%clk 0:02:15]} 33. Bxc6 {[%clk 0:02:10]}  Bf6 {[%clk 0:02:06]} 34. Nc7 {[%clk 0:02:09]}  e4 {[%clk 0:02:04]} 35. Rb7 {[%clk 0:02:06]}  Ne5 {[%clk 0:02:03]} 36. Bd5 {[%clk 0:02:02]}  Nf3+ {[%clk 0:01:55]} 37. Kg2 {[%clk 0:02:00]}  Bxd5 {[%clk 0:01:51]} 38. Nxd5 {[%clk 0:01:59]}  Be5 {[%clk 0:01:50]} 39. h4 {[%clk 0:01:54]}  h5 {[%clk 0:01:29]} 40. Kf1 {[%clk 0:01:42]}  Nh2+ {[%clk 0:01:22]} 41. Ke2 {[%clk 0:01:41]}  Ng4 {[%clk 0:01:22]} 42. Re7 {[%clk 0:01:34]}  Bg7 {[%clk 0:01:20]} 43. Nf4 {[%clk 0:01:31]}  Ne5 {[%clk 0:01:17]} 44. Rxe5 {[%clk 0:01:02]}  Bxe5 {[%clk 0:01:16]} 45. Nxg6 {[%clk 0:01:03]}  Bd6 {[%clk 0:01:15]} 46. Nf4 {[%clk 0:01:01]}  Bxf4 {[%clk 0:01:12]} 47. gxf4 {[%clk 0:00:36]}  Kf7 {[%clk 0:01:11]} 48. f3 {[%clk 0:00:32]}  Ke6 {[%clk 0:01:07]} 49. fxe4 {[%clk 0:00:07]}  fxe4 {[%clk 0:01:07]} 50. Kd2 {[%clk 0:00:08]}  Kf5 {[%clk 0:01:06]} 51. Kc3 {[%clk 0:00:08]}  Kg4 {[%clk 0:01:07]} 52. Kd4 {[%clk 0:00:08]}  Kxh4 {[%clk 0:01:07]} 53. Kxe4 {[%clk 0:00:08]}  Kg4 {[%clk 0:01:07]} 54. f5 {[%clk 0:00:08]}  h4 {[%clk 0:01:06]} 55. f6 {[%clk 0:00:08]}  h3 {[%clk 0:01:06]} 56. f7 {[%clk 0:00:09]}  h2 {[%clk 0:01:07]} 57. f8=Q {[%clk 0:00:09]}  h1=Q+ {[%clk 0:01:08]} 58. Ke5 {[%clk 0:00:08]}  Qa1+ {[%clk 0:01:06]} 59. Ke6 {[%clk 0:00:07]}  Qa2+ {[%clk 0:01:04]} 60. Ke7 {[%clk 0:00:04]}  Qa3+ {[%clk 0:01:04]} 61. Kf7 {[%clk 0:00:04]}  Qxe3 {[%clk 0:01:04]} 62. Qg7+ {[%clk 0:00:04]}  Kf3 {[%clk 0:01:03]} 63. Qf6+ {[%clk 0:00:04]}  Ke2 {[%clk 0:01:03]} 64. Qe6 {[%clk 0:00:04]}  Kf3 {[%clk 0:01:03]} 65. Qxe3+ {[%clk 0:00:04]}  Kxe3 {[%clk 0:01:03]} 1/2-1/2


[Site "https://www.chess.com"]

[Event "Titled Tuesday Blitz November 14 Early 2023"]
[White "Derjabin, Ilja"]
[Black "Materia, Marco"]
[WhiteFideId "14104768"]
[BlackFideId "45150451"]
[WhiteElo "2573"]
[BlackElo "2792"]
[Result "0-1"]
[Round "9"]
[TimeControl "180+1"]
[Date "2023.11.14"]
[WhiteClock "0:00:04"]
[BlackClock "0:00:54"]
[Board "58"]

1. d4 {[%clk 0:02:57]}  Nf6 {[%clk 0:03:00]} 2. c4 {[%clk 0:02:57]}  e6 {[%clk 0:03:00]} 3. Nc3 {[%clk 0:02:58]}  d5 {[%clk 0:03:00]} 4. cxd5 {[%clk 0:02:58]}  exd5 {[%clk 0:03:00]} 5. Bg5 {[%clk 0:02:57]}  c6 {[%clk 0:02:59]} 6. e3 {[%clk 0:02:58]}  h6 {[%clk 0:02:59]} 7. Bh4 {[%clk 0:02:58]}  Be7 {[%clk 0:03:00]} 8. Bd3 {[%clk 0:02:58]}  O-O {[%clk 0:03:00]} 9. Nge2 {[%clk 0:02:58]}  Ne8 {[%clk 0:02:57]} 10. Bxe7 {[%clk 0:02:57]}  Qxe7 {[%clk 0:02:57]} 11. O-O {[%clk 0:02:58]}  Nd6 {[%clk 0:02:57]} 12. Qc2 {[%clk 0:02:58]}  a5 {[%clk 0:02:55]} 13. Rae1 {[%clk 0:02:55]}  Na6 {[%clk 0:02:55]} 14. a3 {[%clk 0:02:55]}  b5 {[%clk 0:02:48]} 15. Ng3 {[%clk 0:02:42]}  Bd7 {[%clk 0:02:41]} 16. Rc1 {[%clk 0:02:34]}  Nc4 {[%clk 0:02:34]} 17. Bxc4 {[%clk 0:02:29]}  dxc4 {[%clk 0:02:32]} 18. e4 {[%clk 0:02:21]}  Nc7 {[%clk 0:02:30]} 19. e5 {[%clk 0:02:09]}  Nd5 {[%clk 0:02:25]} 20. Nce4 {[%clk 0:02:05]}  f6 {[%clk 0:02:20]} 21. exf6 {[%clk 0:01:57]}  Nxf6 {[%clk 0:02:18]} 22. Nc5 {[%clk 0:01:56]}  Qd6 {[%clk 0:02:13]} 23. Rcd1 {[%clk 0:01:52]}  Be6 {[%clk 0:02:05]} 24. Rfe1 {[%clk 0:01:47]}  Rae8 {[%clk 0:02:05]} 25. Qd2 {[%clk 0:01:26]}  Bd5 {[%clk 0:02:00]} 26. Nf5 {[%clk 0:01:07]}  Qc7 {[%clk 0:01:58]} 27. f3 {[%clk 0:01:02]}  Nh5 {[%clk 0:01:50]} 28. Rxe8 {[%clk 0:00:59]}  Rxe8 {[%clk 0:01:49]} 29. Re1 {[%clk 0:00:58]}  Rxe1+ {[%clk 0:01:41]} 30. Qxe1 {[%clk 0:00:58]}  Bf7 {[%clk 0:01:23]} 31. g3 {[%clk 0:00:46]}  Nf6 {[%clk 0:01:21]} 32. Qe5 {[%clk 0:00:43]}  Qxe5 {[%clk 0:01:13]} 33. dxe5 {[%clk 0:00:42]}  Nd5 {[%clk 0:01:12]} 34. e6 {[%clk 0:00:31]}  Bg6 {[%clk 0:01:10]} 35. Nd4 {[%clk 0:00:27]}  b4 {[%clk 0:01:10]} 36. axb4 {[%clk 0:00:23]}  axb4 {[%clk 0:01:10]} 37. Kf2 {[%clk 0:00:20]}  c3 {[%clk 0:01:07]} 38. bxc3 {[%clk 0:00:20]}  bxc3 {[%clk 0:01:08]} 39. Ke2 {[%clk 0:00:19]}  Kf8 {[%clk 0:01:05]} 40. Ne4 {[%clk 0:00:14]}  Ke7 {[%clk 0:01:02]} 41. Nxc6+ {[%clk 0:00:12]}  Kxe6 {[%clk 0:01:01]} 42. Kd3 {[%clk 0:00:04]}  Bh5 {[%clk 0:00:56]} 43. g4 {[%clk 0:00:04]}  Bg6 {[%clk 0:00:55]} 44. Nd4+ {[%clk 0:00:03]}  Ke5 {[%clk 0:00:55]} 45. Ne2 {[%clk 0:00:03]}  Nf4+ {[%clk 0:00:51]} 46. Nxf4 {[%clk 0:00:02]}  Kxf4 {[%clk 0:00:51]} 47. Kxc3 {[%clk 0:00:01]}  Bxe4 {[%clk 0:00:51]} 48. fxe4 {[%clk 0:00:02]}  Kxe4 {[%clk 0:00:52]} 49. h4 {[%clk 0:00:02]}  Kf4 {[%clk 0:00:51]} 50. g5 {[%clk 0:00:02]}  hxg5 {[%clk 0:00:51]} 51. hxg5 {[%clk 0:00:03]}  Kxg5 {[%clk 0:00:52]} 52. Kd3 {[%clk 0:00:04]}  Kf4 {[%clk 0:00:52]} 53. Ke2 {[%clk 0:00:04]}  Kg3 {[%clk 0:00:52]} 54. Kf1 {[%clk 0:00:05]}  g5 {[%clk 0:00:53]} 55. Kg1 {[%clk 0:00:04]}  g4 {[%clk 0:00:53]} 56. Kh1 {[%clk 0:00:05]}  Kf2 {[%clk 0:00:53]} 57. Kh2 {[%clk 0:00:04]}  g3+ {[%clk 0:00:54]} 0-1


[Site "https://www.chess.com"]

[Event "Titled Tuesday Blitz November 14 Early 2023"]
[White "Sharapov, Evgeny"]
[Black "Vignesh N R"]
[WhiteFideId "14103133"]
[BlackFideId "25012215"]
[WhiteElo "2566"]
[BlackElo "2786"]
[Result "1/2-1/2"]
[Round "9"]
[TimeControl "180+1"]
[Date "2023.11.14"]
[WhiteClock "0:01:33"]
[BlackClock "0:01:29"]
[Board "59"]

1. e4 {[%clk 0:03:00]}  c5 {[%clk 0:02:56]} 2. Nf3 {[%clk 0:02:59]}  e6 {[%clk 0:02:55]} 3. c4 {[%clk 0:03:00]}  Nc6 {[%clk 0:02:55]} 4. Nc3 {[%clk 0:03:00]}  Nf6 {[%clk 0:02:55]} 5. d4 {[%clk 0:03:00]}  cxd4 {[%clk 0:02:55]} 6. Nxd4 {[%clk 0:03:00]}  Bb4 {[%clk 0:02:55]} 7. Nxc6 {[%clk 0:03:00]}  dxc6 {[%clk 0:02:54]} 8. Qxd8+ {[%clk 0:02:59]}  Kxd8 {[%clk 0:02:54]} 9. f3 {[%clk 0:03:00]}  e5 {[%clk 0:02:53]} 10. Be3 {[%clk 0:02:59]}  Be6 {[%clk 0:02:52]} 11. O-O-O+ {[%clk 0:02:59]}  Kc7 {[%clk 0:02:51]} 12. Kc2 {[%clk 0:02:58]}  Rad8 {[%clk 0:02:50]} 13. Be2 {[%clk 0:02:59]}  Nd7 {[%clk 0:02:48]} 14. a3 {[%clk 0:02:57]}  Bc5 {[%clk 0:02:48]} 15. Bxc5 {[%clk 0:02:57]}  Nxc5 {[%clk 0:02:48]} 16. b4 {[%clk 0:02:57]}  Nd7 {[%clk 0:02:47]} 17. Rd2 {[%clk 0:02:55]}  Nb6 {[%clk 0:02:47]} 18. c5 {[%clk 0:02:54]}  Rxd2+ {[%clk 0:02:44]} 19. Kxd2 {[%clk 0:02:53]}  Nc4+ {[%clk 0:02:45]} 20. Bxc4 {[%clk 0:02:48]}  Bxc4 {[%clk 0:02:46]} 21. Ke3 {[%clk 0:02:49]}  a5 {[%clk 0:02:43]} 22. Rb1 {[%clk 0:02:41]}  axb4 {[%clk 0:02:42]} 23. Rxb4 {[%clk 0:02:39]}  Ba6 {[%clk 0:02:40]} 24. Rb2 {[%clk 0:02:35]}  h5 {[%clk 0:02:36]} 25. a4 {[%clk 0:02:33]}  Ra8 {[%clk 0:02:34]} 26. Rd2 {[%clk 0:02:32]}  Bc4 {[%clk 0:02:33]} 27. f4 {[%clk 0:02:15]}  exf4+ {[%clk 0:02:30]} 28. Kxf4 {[%clk 0:02:12]}  Ra5 {[%clk 0:02:31]} 29. e5 {[%clk 0:02:04]}  Rxc5 {[%clk 0:02:29]} 30. Ne4 {[%clk 0:02:05]}  Ra5 {[%clk 0:02:28]} 31. Rd4 {[%clk 0:02:05]}  Bb3 {[%clk 0:02:26]} 32. Nd6 {[%clk 0:02:04]}  Be6 {[%clk 0:02:05]} 33. Ne8+ {[%clk 0:02:03]}  Kb6 {[%clk 0:02:03]} 34. Nxg7 {[%clk 0:02:02]}  Kc5 {[%clk 0:02:00]} 35. Nxe6+ {[%clk 0:01:56]}  fxe6 {[%clk 0:02:01]} 36. Ke3 {[%clk 0:01:55]}  Kb6 {[%clk 0:01:53]} 37. Ke4 {[%clk 0:01:49]}  Kc7 {[%clk 0:01:52]} 38. g3 {[%clk 0:01:44]}  Rc5 {[%clk 0:01:51]} 39. h3 {[%clk 0:01:43]}  Rc3 {[%clk 0:01:51]} 40. Kf4 {[%clk 0:01:41]}  b5 {[%clk 0:01:44]} 41. a5 {[%clk 0:01:41]}  c5 {[%clk 0:01:43]} 42. Rd6 {[%clk 0:01:39]}  b4 {[%clk 0:01:43]} 43. Rxe6 {[%clk 0:01:37]}  b3 {[%clk 0:01:42]} 44. Rb6 {[%clk 0:01:37]}  c4 {[%clk 0:01:37]} 45. e6 {[%clk 0:01:37]}  Rc2 {[%clk 0:01:35]} 46. e7 {[%clk 0:01:38]}  Re2 {[%clk 0:01:34]} 47. Rb4 {[%clk 0:01:37]}  Rxe7 {[%clk 0:01:28]} 48. Rxc4+ {[%clk 0:01:37]}  Kb8 {[%clk 0:01:28]} 49. Rc1 {[%clk 0:01:33]}  b2 {[%clk 0:01:27]} 50. Rb1 {[%clk 0:01:33]}  Rb7 {[%clk 0:01:27]} 51. g4 {[%clk 0:01:31]}  hxg4 {[%clk 0:01:26]} 52. hxg4 {[%clk 0:01:31]}  Ka7 {[%clk 0:01:26]} 53. g5 {[%clk 0:01:31]}  Ka6 {[%clk 0:01:27]} 54. Kf5 {[%clk 0:01:31]}  Kxa5 {[%clk 0:01:28]} 55. g6 {[%clk 0:01:32]}  Ka4 {[%clk 0:01:28]} 56. Kf6 {[%clk 0:01:32]}  Kb3 {[%clk 0:01:28]} 57. g7 {[%clk 0:01:32]}  Rxg7 {[%clk 0:01:28]} 58. Kxg7 {[%clk 0:01:32]}  Kc2 {[%clk 0:01:28]} 59. Rxb2+ {[%clk 0:01:33]}  Kxb2 {[%clk 0:01:29]} 1/2-1/2


[Site "https://www.chess.com"]

[Event "Titled Tuesday Blitz November 14 Early 2023"]
[White "Krivonosov, Oleg"]
[Black "Toktomushev, Teimur"]
[WhiteFideId "11600349"]
[BlackFideId "14176726"]
[WhiteElo "2704"]
[BlackElo "2534"]
[Result "0-1"]
[Round "9"]
[TimeControl "180+1"]
[Date "2023.11.14"]
[WhiteClock "0:00:26"]
[BlackClock "0:00:05"]
[Board "63"]

1. Nf3 {[%clk 0:03:00]}  d5 {[%clk 0:02:54]} 2. d4 {[%clk 0:02:59]}  Nf6 {[%clk 0:02:54]} 3. c4 {[%clk 0:03:00]}  e6 {[%clk 0:02:54]} 4. g3 {[%clk 0:02:59]}  Bb4+ {[%clk 0:02:54]} 5. Bd2 {[%clk 0:02:59]}  Be7 {[%clk 0:02:55]} 6. Bg2 {[%clk 0:02:58]}  O-O {[%clk 0:02:55]} 7. O-O {[%clk 0:02:58]}  c6 {[%clk 0:02:56]} 8. Qc2 {[%clk 0:02:58]}  b6 {[%clk 0:02:52]} 9. Bf4 {[%clk 0:02:57]}  Ba6 {[%clk 0:02:50]} 10. cxd5 {[%clk 0:02:51]}  cxd5 {[%clk 0:02:50]} 11. Nc3 {[%clk 0:02:48]}  Nc6 {[%clk 0:02:48]} 12. Qa4 {[%clk 0:02:39]}  Bb7 {[%clk 0:02:46]} 13. Ne5 {[%clk 0:02:35]}  Nxe5 {[%clk 0:02:41]} 14. Bxe5 {[%clk 0:02:32]}  Nd7 {[%clk 0:02:26]} 15. Bf4 {[%clk 0:02:30]}  a6 {[%clk 0:02:26]} 16. Rfd1 {[%clk 0:02:23]}  b5 {[%clk 0:02:25]} 17. Qb3 {[%clk 0:02:24]}  Nb6 {[%clk 0:02:14]} 18. Rac1 {[%clk 0:02:22]}  Rc8 {[%clk 0:02:11]} 19. a4 {[%clk 0:02:16]}  b4 {[%clk 0:02:05]} 20. Na2 {[%clk 0:02:16]}  a5 {[%clk 0:02:05]} 21. Rxc8 {[%clk 0:02:14]}  Qxc8 {[%clk 0:01:57]} 22. Rc1 {[%clk 0:02:14]}  Qe8 {[%clk 0:01:46]} 23. Bc7 {[%clk 0:02:04]}  Qxa4 {[%clk 0:01:30]} 24. Qxa4 {[%clk 0:02:03]}  Nxa4 {[%clk 0:01:31]} 25. Bxa5 {[%clk 0:02:02]}  b3 {[%clk 0:01:21]} 26. Nc3 {[%clk 0:02:00]}  Nxb2 {[%clk 0:01:21]} 27. Nb5 {[%clk 0:01:40]}  Ba6 {[%clk 0:00:50]} 28. Rb1 {[%clk 0:01:31]}  Bxb5 {[%clk 0:00:37]} 29. Rxb2 {[%clk 0:01:31]}  Bc4 {[%clk 0:00:38]} 30. Rb1 {[%clk 0:01:20]}  Ra8 {[%clk 0:00:33]} 31. Bc3 {[%clk 0:01:19]}  Ra2 {[%clk 0:00:09]} 32. Bb2 {[%clk 0:01:06]}  Rxb2 {[%clk 0:00:03]} 33. Rxb2 {[%clk 0:01:05]}  Ba3 {[%clk 0:00:04]} 34. Rb1 {[%clk 0:01:06]}  b2 {[%clk 0:00:04]} 35. e4 {[%clk 0:00:59]}  Ba2 {[%clk 0:00:03]} 36. Rf1 {[%clk 0:00:58]}  b1=Q {[%clk 0:00:03]} 37. Rxb1 {[%clk 0:00:57]}  Bxb1 {[%clk 0:00:04]} 38. exd5 {[%clk 0:00:57]}  exd5 {[%clk 0:00:05]} 39. Bxd5 {[%clk 0:00:57]}  Bb2 {[%clk 0:00:06]} 40. Kg2 {[%clk 0:00:56]}  Bxd4 {[%clk 0:00:06]} 41. f4 {[%clk 0:00:56]}  Bf5 {[%clk 0:00:04]} 42. Kf3 {[%clk 0:00:56]}  Be6 {[%clk 0:00:04]} 43. Be4 {[%clk 0:00:55]}  g6 {[%clk 0:00:04]} 44. g4 {[%clk 0:00:50]}  f5 {[%clk 0:00:02]} 45. gxf5 {[%clk 0:00:49]}  Bxf5 {[%clk 0:00:03]} 46. Bd5+ {[%clk 0:00:49]}  Kg7 {[%clk 0:00:03]} 47. h4 {[%clk 0:00:46]}  Kh6 {[%clk 0:00:03]} 48. Bg8 {[%clk 0:00:44]}  Bc3 {[%clk 0:00:03]} 49. Kf2 {[%clk 0:00:42]}  Bb4 {[%clk 0:00:02]} 50. Bd5 {[%clk 0:00:34]}  Bd2 {[%clk 0:00:02]} 51. Kg3 {[%clk 0:00:32]}  Be1+ {[%clk 0:00:03]} 52. Kf3 {[%clk 0:00:32]}  Bxh4 {[%clk 0:00:03]} 53. Bg8 {[%clk 0:00:32]}  Bf6 {[%clk 0:00:03]} 54. Kg3 {[%clk 0:00:30]}  Kg7 {[%clk 0:00:04]} 55. Bd5 {[%clk 0:00:30]}  h5 {[%clk 0:00:04]} 56. Bc4 {[%clk 0:00:29]}  Kf8 {[%clk 0:00:04]} 57. Bd5 {[%clk 0:00:28]}  Ke7 {[%clk 0:00:05]} 58. Bc4 {[%clk 0:00:28]}  Kd6 {[%clk 0:00:05]} 59. Bf7 {[%clk 0:00:26]}  Kc5 {[%clk 0:00:05]} 0-1


[Site "https://www.chess.com"]